bitfinex/quotes_SOLUSD_20250525
["timestamp","ask_amount","ask_price","bid_price","bid_amount"]
[1748165597217,35.01511837,171.24,171.17,124.355]
[1748165597625,35.01511837,171.23,171.17,124.355]
[1748165598543,35.01511837,171.24,171.17,124.355]
[1748165598745,18.64964886,171.25,171.18,1.6527]
[1748165599438,53.66476723,171.25,171.18,1.6527]
[1748165599661,35.01511837,171.24,171.18,1.6527]
[1748165600444,18.64964886,171.23,171.18,1.6527]
[1748165600623,53.66476723,171.23,171.18,1.6527]
[1748165601646,21.84459539,171.2,171.18,82.9]
[1748165601858,21.84459539,171.19,171.17,82.9]
[1748165602142,44.79181043,171.23,171.18,73.44]
[1748165603439,40.63640582,171.19,171.18,73.44]
[1748165604642,6.1512,171.26,171.18,73.44]
[1748165604848,18.64964886,171.23,171.18,156.34]
[1748165605347,18.64964886,171.24,171.18,156.34]
[1748165605728,34.94064418,171.24,171.18,156.34]
[1748165605933,34.94064418,171.23,171.18,156.34]
[1748165606440,34.94064418,171.22,171.18,156.34]
[1748165607225,34.94064418,171.23,171.18,156.34]
[1748165608740,34.94064418,171.22,171.18,156.34]
[1748165608951,34.94064418,171.2,171.18,156.34]
[1748165609255,34.94064418,171.19,171.18,156.34]
[1748165610454,53.59029304,171.19,171.18,156.34]
[1748165610640,53.59029304,171.19,171.18,73.44]
[1748165611664,136.9,171.29,171.18,73.44]
[1748165611841,18.64964886,171.22,171.18,73.44]
[1748165613067,53.59029304,171.22,171.18,73.44]
[1748165613361,18.79181043,171.25,171.18,73.44]
[1748165613574,34.94064418,171.22,171.18,73.44]
[1748165614538,34.94064418,171.22,171.19,83.94]
[1748165614736,34.94064418,171.22,171.2,34.98]
[1748165618652,34.94064418,171.21,171.2,34.98]
[1748165619180,18.64964886,171.2,171.19,166.84]
[1748165619471,53.73245461,171.2,171.19,118.92]
[1748165621460,53.59029304,171.2,171.19,118.92]
[1748165623858,53.73245461,171.2,171.19,83.94]
[1748165624055,53.73245461,171.2,171.19,118.92]
[1748165625276,53.59029304,171.2,171.19,118.92]
[1748165627759,40.5008949,171.2,171.19,118.92]
[1748165630850,40.64305647,171.2,171.19,118.92]
[1748165631053,88.49430251,171.2,171.19,118.92]
[1748165631372,66.64305647,171.2,171.19,118.92]
[1748165638581,0.14216157,171.25,171.19,118.92]
[1748165639286,40.64305647,171.25,171.19,118.92]
[1748165640181,18.79181043,171.25,171.19,118.92]
[1748165640366,18.64964886,171.23,171.19,118.92]
[1748165642188,40.5008949,171.21,171.19,118.92]
[1748165643190,18.64964886,171.21,171.19,118.92]
[1748165644886,0.14216157,171.25,171.19,118.92]
[1748165645086,18.79181043,171.22,171.19,118.92]
[1748165645278,18.64964886,171.22,171.19,118.92]
[1748165645488,18.64964886,171.24,171.19,118.92]
[1748165645985,0.14216157,171.26,171.19,201.82]
[1748165646200,18.64964886,171.27,171.19,201.82]
[1748165646409,40.5008949,171.26,171.19,201.82]
[1748165647390,18.64964886,171.26,171.19,201.82]
[1748165647971,21.99340761,171.28,171.2,1.5168]
[1748165648296,18.64964886,171.27,171.21,34.98]
[1748165649189,18.64964886,171.25,171.21,34.98]
[1748165650175,21.85124604,171.25,171.21,34.98]
[1748165650577,18.64964886,171.24,171.21,34.98]
[1748165651994,0.14216157,171.27,171.21,34.98]
[1748165652200,0.14216157,171.25,171.21,34.98]
[1748165652494,18.64964886,171.26,171.21,34.98]
[1748165654077,40.5008949,171.26,171.21,34.98]
[1748165654275,21.85124604,171.25,171.21,34.98]
[1748165654497,18.64964886,171.24,171.21,117.88]
[1748165654795,40.5008949,171.24,171.21,82.9]
[1748165655001,40.5008949,171.24,171.22,34.98]
[1748165656501,18.64964886,171.22,171.19,83.94]
[1748165656880,18.64964886,171.22,171.2,34.98]
[1748165658010,21.85124604,171.21,171.19,83.94]
[1748165658182,40.5008949,171.2,171.19,83.94]
[1748165658682,40.5008949,171.2,171.19,118.92]
[1748165660303,40.64305647,171.2,171.19,118.92]
[1748165660680,62.49430251,171.2,171.19,122.28]
[1748165660879,62.49430251,171.2,171.19,157.26]
[1748165662403,18.79181043,171.16,171.07,7.7506]
[1748165662710,21.85124604,171.13,171.08,38.34]
[1748165663081,21.85124604,171.13,171.08,121.24]
[1748165663282,21.85124604,171.12,171.08,38.34]
[1748165663500,18.79181043,171.16,171.09,34.98]
[1748165663683,18.64964886,171.12,171.09,34.98]
[1748165667708,18.64964886,171.12,171.1,83.94]
[1748165668089,18.64964886,171.12,171.11,34.98]
[1748165668781,0.14216157,171.16,171.11,34.98]
[1748165668782,21.85124604,171.14,171.11,34.98]
[1748165668984,18.64964886,171.14,171.11,34.98]
[1748165669185,40.5008949,171.14,171.11,34.98]
[1748165669918,18.79181043,171.16,171.11,34.98]
[1748165670287,21.85124604,171.15,171.11,34.98]
[1748165670482,18.79181043,171.16,171.11,34.98]
[1748165670711,40.64305647,171.16,171.11,34.98]
[1748165672911,21.85124604,171.15,171.11,34.98]
[1748165673097,21.85124604,171.14,171.11,34.98]
[1748165673486,18.79181043,171.16,171.11,34.98]
[1748165673487,40.5008949,171.12,171.11,34.98]
[1748165674719,18.79181043,171.11,171.1,83.94]
[1748165674895,40.64305647,171.11,171.1,118.92]
[1748165675913,18.79181043,171.12,171.1,118.92]
[1748165676090,21.85124604,171.12,171.1,118.92]
[1748165676703,46.31414886,171.13,171.1,118.92]
[1748165676704,40.5008949,171.11,171.1,118.92]
[1748165679400,21.85124604,171.13,171.1,118.92]
[1748165679597,18.64964886,171.12,171.1,118.92]
[1748165680303,21.99340761,171.14,171.1,118.92]
[1748165680503,21.85124604,171.15,171.1,118.92]
[1748165680822,18.64964886,171.14,171.1,118.92]
[1748165681398,21.85124604,171.14,171.1,118.92]
[1748165682011,21.85124604,171.13,171.1,118.92]
[1748165683234,21.85124604,171.14,171.1,118.92]
[1748165683924,21.85124604,171.14,171.1,201.82]
[1748165684424,21.85124604,171.13,171.1,201.82]
[1748165684616,1.5059,171.21,171.1,118.92]
[1748165684926,18.64964886,171.17,171.1,125.4592]
[1748165686018,18.64964886,171.18,171.1,234.3592]
[1748165686425,21.85124604,171.21,171.13,26.0]
[1748165686622,18.64964886,171.2,171.14,73.36]
[1748165689942,18.64964886,171.2,171.14,156.26]
[1748165691052,21.85124604,171.19,171.14,156.26]
[1748165691544,18.64964886,171.17,171.15,34.98]
[1748165693745,21.85124604,171.16,171.15,34.98]
[1748165694246,21.85124604,171.17,171.15,34.98]
[1748165694647,40.5008949,171.17,171.16,83.96]
[1748165697649,40.64305647,171.17,171.16,83.96]
[1748165697827,40.64305647,171.17,171.16,118.94]
[1748165698423,18.79181043,171.17,171.16,118.94]
[1748165698751,40.5008949,171.17,171.16,118.94]
[1748165700548,0.14216157,171.19,171.16,118.94]
[1748165700747,18.64964886,171.2,171.16,118.94]
[1748165701141,21.85124604,171.18,171.16,118.94]
[1748165702045,18.64964886,171.2,171.16,118.94]
[1748165702847,18.79181043,171.22,171.16,118.94]
[1748165703032,21.85124604,171.21,171.16,201.84]
[1748165703348,40.5008949,171.2,171.16,201.84]
[1748165704649,21.85124604,171.21,171.16,201.84]
[1748165706752,21.85124604,171.2,171.16,201.84]
[1748165707454,21.85124604,171.21,171.16,201.84]
[1748165708225,21.85124604,171.2,171.16,201.84]
[1748165709957,21.85124604,171.19,171.16,201.84]
[1748165710159,21.85124604,171.18,171.16,201.84]
[1748165710330,18.64964886,171.17,171.16,118.94]
[1748165710536,40.5008949,171.17,171.16,118.94]
[1748165712249,40.64305647,171.17,171.16,83.96]
[1748165712438,40.64305647,171.17,171.16,118.94]
[1748165714658,40.64305647,171.17,171.16,83.96]
[1748165714961,40.64305647,171.17,171.04,144.34831251]
[1748165714962,44.79181043,171.13,171.04,7.7826]
[1748165715266,21.85124604,171.09,171.05,73.28]
[1748165715469,21.85124604,171.09,171.05,38.3]
[1748165715642,21.85124604,171.08,171.06,34.98]
[1748165715843,21.85124604,171.07,171.05,38.3]
[1748165716048,40.5008949,171.07,171.06,34.98]
[1748165717558,40.5008949,171.07,171.06,118.92]
[1748165717755,40.64305647,171.07,171.06,83.94]
[1748165717942,40.64305647,171.07,171.06,118.92]
[1748165718135,18.79181043,171.07,171.06,118.92]
[1748165718336,40.64305647,171.07,171.06,118.92]
[1748165718965,40.64305647,171.07,171.06,83.94]
[1748165719350,40.64305647,171.07,171.06,157.18]
[1748165721150,40.64305647,171.07,171.06,157.2]
[1748165723769,18.79181043,171.07,171.06,157.2]
[1748165723977,40.64305647,171.07,171.06,73.26]
[1748165724275,44.79181043,171.03,170.96,90.6826]
[1748165724581,21.85124604,171.02,170.96,90.6826]
[1748165725251,21.85124604,171.01,170.97,35.0]
[1748165726772,21.85124604,171.02,170.97,35.0]
[1748165726992,44.79181043,171.03,170.97,35.0]
[1748165727161,21.85124604,171.02,170.97,35.0]
[1748165727481,21.85124604,171.01,170.98,84.0]
[1748165727681,21.85124604,171.01,170.99,35.0]
[1748165728462,21.85124604,171.01,170.98,122.28]
[1748165728662,21.85124604,170.99,170.98,122.28]
[1748165728863,21.85124604,170.99,170.98,157.28]
[1748165729988,40.5008949,170.99,170.98,157.28]
[1748165738986,40.64305647,170.99,170.98,157.28]
[1748165740195,40.64305647,170.99,170.98,157.3]
[1748165741891,40.64305647,170.99,170.98,122.28]
[1748165742099,40.64305647,170.99,170.98,157.3]
[1748165744683,18.79181043,170.99,170.98,157.3]
[1748165744884,40.64305647,170.99,170.98,157.3]
[1748165749204,26.0,171.01,170.98,157.3]
[1748165749507,21.85124604,170.99,170.98,157.3]
[1748165749700,40.64305647,170.99,170.98,157.3]
[1748165754232,44.79181043,170.95,170.92,82.9]
[1748165754431,44.79181043,170.95,170.84,1.5048]
[1748165754432,44.79181043,170.95,170.93,73.26]
[1748165754707,46.32301043,170.95,170.94,73.26]
[1748165755018,44.79181043,170.95,170.94,38.24]
[1748165755188,44.79181043,170.95,170.84,7.7671]
[1748165755804,21.85124604,170.89,170.84,7.7671]
[1748165756114,18.64964886,170.92,170.84,7.7671]
[1748165756316,21.85124604,170.9,170.84,7.7671]
[1748165756615,21.85124604,170.89,170.85,35.02]
[1748165756999,18.64964886,170.88,170.85,35.02]
[1748165757193,21.85124604,170.88,170.85,35.02]
[1748165757410,21.85124604,170.88,170.86,35.02]
[1748165757599,40.5008949,170.88,170.87,122.32]
[1748165757809,40.64305647,170.88,170.87,122.32]
[1748165758807,40.64305647,170.88,170.87,157.34]
[1748165759798,40.64305647,170.88,170.87,122.32]
[1748165760114,40.64305647,170.88,170.87,157.36]
[1748165760614,40.64305647,170.88,170.87,122.32]
[1748165760914,40.64305647,170.88,170.87,157.36]
[1748165762304,66.64305647,170.88,170.87,157.36]
[1748165763017,66.64305647,170.88,170.74,26.0]
[1748165763018,44.79181043,170.84,170.74,7.818]
[1748165763189,21.85124604,170.78,170.75,73.3]
[1748165763389,18.64964886,170.83,170.75,73.3]
[1748165763589,21.85124604,170.81,170.75,73.3]
[1748165763814,21.85124604,170.83,170.75,73.3]
[1748165764015,21.85124604,170.82,170.75,73.3]
[1748165764314,21.85124604,170.8,170.75,73.3]
[1748165764690,21.85124604,170.81,170.75,73.3]
[1748165765718,21.85124604,170.82,170.75,73.3]
[1748165766714,21.85124604,170.77,170.74,6.1656]
[1748165766916,21.85124604,170.76,170.75,38.28]
[1748165767117,21.85124604,170.76,170.75,73.32]
[1748165767322,21.85124604,170.76,170.7,6.0676]
[1748165767323,18.79181043,170.76,170.7,6.0676]
[1748165767523,10.00489242,170.89,170.75,38.28]
[1748165767524,26.0,170.83,170.75,38.28]
[1748165767825,21.85124604,170.8,170.76,35.04]
[1748165768002,21.85124604,170.79,170.76,35.04]
[1748165768412,0.14216157,170.82,170.76,35.04]
[1748165768413,18.64964886,170.82,170.76,35.04]
[1748165768618,21.85124604,170.78,170.76,35.04]
[1748165768810,21.85124604,170.79,170.76,35.04]
[1748165769197,21.85124604,170.78,170.76,35.04]
[1748165769426,18.64964886,170.78,170.76,35.04]
[1748165769721,40.5008949,170.78,170.75,38.28]
[1748165769926,10.0,171.01,170.8,26.0]
[1748165770134,21.85124604,170.9,170.81,73.34]
[1748165770441,21.85124604,170.88,170.81,73.34]
[1748165770726,21.85124604,170.87,170.81,73.34]
[1748165771132,21.85124604,170.85,170.81,73.34]
[1748165771632,21.85124604,170.86,170.81,73.34]
[1748165772625,21.85124604,170.85,170.81,38.28]
[1748165772827,21.85124604,170.84,170.82,35.06]
[1748165773542,18.64964886,170.85,170.82,35.06]
[1748165773543,21.85124604,170.83,170.82,35.06]
[1748165773836,21.85124604,170.84,170.82,35.06]
[1748165775137,21.85124604,170.83,170.82,35.06]
[1748165775444,21.85124604,170.84,170.82,35.06]
[1748165775939,26.0,170.86,170.82,35.06]
[1748165776231,21.85124604,170.84,170.82,35.06]
[1748165776625,21.85124604,170.83,170.82,35.06]
[1748165777001,40.5008949,170.83,170.82,35.06]
[1748165777398,18.79181043,170.83,170.82,35.06]
[1748165777615,18.64964886,170.82,170.81,38.28]
[1748165777819,40.5008949,170.82,170.81,157.46]
[1748165778019,18.64964886,170.85,170.81,157.46]
[1748165778224,21.85124604,170.82,170.81,157.46]
[1748165779338,40.64305647,170.82,170.81,157.46]
[1748165779518,40.64305647,170.82,170.81,122.4]
[1748165779719,40.64305647,170.82,170.81,157.46]
[1748165780519,18.79181043,170.82,170.81,157.46]
[1748165780714,40.64305647,170.82,170.81,157.46]
[1748165785232,62.49430251,170.82,170.81,122.4]
[1748165785430,44.79181043,170.78,170.69,7.9677]
[1748165785624,26.14216157,170.78,170.7,38.26]
[1748165785831,26.0,170.77,170.7,38.26]
[1748165786339,27.6651,170.76,170.64,6.3347]
[1748165786511,26.0,170.73,170.64,6.3347]
[1748165786833,47.85124604,170.72,170.64,6.3347]
[1748165787043,47.85124604,170.72,170.65,35.06]
[1748165787413,26.0,170.72,170.65,35.06]
[1748165787734,47.85124604,170.72,170.66,124.06]
[1748165787939,26.0,170.72,170.66,124.06]
[1748165788511,47.85124604,170.72,170.66,124.06]
[1748165789031,0.14216157,170.75,170.66,124.06]
[1748165789346,21.85124604,170.78,170.66,124.06]
[1748165789516,26.14216157,170.78,170.67,0.58557033]
[1748165789839,18.64964886,170.77,170.66,124.06]
[1748165790131,18.79181043,170.79,170.66,124.06]
[1748165790445,21.85124604,170.82,170.7,7.8857]
[1748165790629,47.85124604,170.82,170.71,35.06]
[1748165790942,21.85124604,170.8,170.72,39.94]
[1748165791522,21.85124604,170.78,170.72,39.94]
[1748165791718,0.14216157,170.78,170.73,75.0]
[1748165791937,21.85124604,170.76,170.73,75.0]
[1748165792138,21.85124604,170.75,170.73,75.0]
[1748165792351,21.85124604,170.74,170.73,75.0]
[1748165792648,21.85124604,170.74,170.73,39.94]
[1748165792830,21.85124604,170.74,170.73,75.0]
[1748165793236,18.64964886,170.74,170.73,75.0]
[1748165793418,40.5008949,170.74,170.73,75.0]
[1748165793925,66.76204584,170.74,170.73,39.94]
[1748165794329,26.0,170.74,170.73,75.0]
[1748165794530,47.97023541,170.74,170.73,75.0]
[1748165794745,66.61988427,170.74,170.73,75.0]
[1748165795845,44.64964886,170.74,170.73,75.0]
[1748165796049,66.61988427,170.74,170.73,75.0]
[1748165796629,0.14216157,170.77,170.73,75.0]
[1748165796833,21.97023541,170.75,170.73,75.0]
[1748165797022,21.97023541,170.74,170.73,75.0]
[1748165797419,26.0,170.71,170.51,6.3575]
[1748165797746,21.97023541,170.61,170.55,21.97023541]
[1748165798024,21.97023541,170.61,170.56,35.06]
[1748165798330,21.97023541,170.6,170.56,35.06]
[1748165798521,21.97023541,170.59,170.52,124.1]
[1748165798739,26.0,170.64,170.53,57.03023541]
[1748165799027,21.97023541,170.59,170.53,57.03023541]
[1748165799438,21.97023541,170.58,170.53,35.06]
[1748165799631,21.97023541,170.57,170.52,124.1]
[1748165799835,21.97023541,170.56,170.53,35.08]
[1748165800037,21.97023541,170.55,170.54,35.08]
[1748165800327,21.97023541,170.56,170.54,35.08]
[1748165801044,21.97023541,170.55,170.54,35.08]
[1748165801745,47.97023541,170.6,170.54,35.08]
[1748165801746,21.97023541,170.56,170.54,35.08]
[1748165801950,21.97023541,170.55,170.54,35.08]
[1748165803154,6.398,170.67,170.54,35.08]
[1748165803451,6.398,170.67,170.55,1.5954]
[1748165803452,21.97023541,170.59,170.55,1.5954]
[1748165803637,21.97023541,170.58,170.55,1.5954]
[1748165803838,21.97023541,170.57,170.54,35.08]
[1748165804036,21.97023541,170.55,170.52,26.0]
[1748165804238,21.97023541,170.55,170.53,35.08]
[1748165804749,44.79181043,170.64,170.53,35.08]
[1748165804953,21.97023541,170.56,170.53,35.08]
[1748165805648,18.64964886,170.66,170.54,21.97023541]
[1748165805951,18.79181043,170.69,170.54,21.97023541]
[1748165806154,21.97023541,170.6,170.54,21.97023541]
[1748165806364,21.97023541,170.6,170.55,21.97023541]
[1748165806732,21.97023541,170.6,170.54,21.97023541]
[1748165806933,18.64964886,170.68,170.54,21.97023541]
[1748165806934,21.97023541,170.59,170.54,21.97023541]
[1748165807357,26.0,170.67,170.54,21.97023541]
[1748165807548,21.97023541,170.59,170.55,124.18]
[1748165808137,21.97023541,170.62,170.57,21.97023541]
[1748165808355,21.97023541,170.62,170.58,35.1]
[1748165808653,21.97023541,170.61,170.58,35.1]
[1748165808954,21.99751754,170.6,170.58,35.1]
[1748165809455,21.99751754,170.59,170.58,35.1]
[1748165809831,21.99751754,170.6,170.58,35.1]
[1748165810226,26.0,170.67,170.58,35.1]
[1748165810227,21.99751754,170.61,170.58,35.1]
[1748165810432,21.99751754,170.64,170.58,35.1]
[1748165810769,21.99751754,170.62,170.58,35.1]
[1748165811272,21.99751754,170.61,170.59,35.1]
[1748165811434,21.99751754,170.6,170.59,35.1]
[1748165811960,21.99751754,170.61,170.59,35.1]
[1748165813854,21.99751754,170.62,170.59,35.1]
[1748165814600,21.99751754,170.64,170.59,35.1]
[1748165815848,21.99751754,170.65,170.59,35.1]
[1748165816254,21.99751754,170.64,170.59,35.1]
[1748165816459,26.0,170.69,170.59,35.1]
[1748165817039,21.99751754,170.65,170.59,35.1]
[1748165817245,26.0,170.69,170.59,35.1]
[1748165817447,21.99751754,170.67,170.6,84.22]
[1748165817639,1.6361,170.7,170.6,125.92]
[1748165817835,7.58815573,170.73,170.61,0.14216157]
[1748165818061,21.99751754,170.71,170.61,18.79181043]
[1748165818250,21.99751754,170.68,170.61,0.5857125]
[1748165818764,21.99751754,170.68,170.63,26.0]
[1748165819065,26.0,170.74,170.63,26.0]
[1748165819551,21.99751754,170.71,170.63,26.0]
[1748165820161,26.0,170.74,170.63,26.58569875]
[1748165820341,21.99751754,170.72,170.64,0.14216157]
[1748165820550,1.5107,170.75,170.65,61.08]
[1748165820769,18.79181043,170.78,170.66,41.7]
[1748165821066,21.99751754,170.73,170.66,47.7237]
[1748165821268,44.79181043,170.78,170.66,47.7237]
[1748165821443,21.99751754,170.72,170.66,47.7237]
[1748165821649,21.99751754,170.68,170.66,41.7]
[1748165821869,21.99751754,170.67,170.66,41.7]
[1748165822093,1.6342,170.71,170.66,41.7]
[1748165822274,21.99751754,170.69,170.66,41.7]
[1748165822574,21.99751754,170.68,170.66,41.7]
[1748165823670,21.99751754,170.67,170.66,41.7]
[1748165823871,21.99751754,170.67,170.66,76.78]
[1748165826672,26.0,170.63,170.52,6.4493]
[1748165826864,21.99751754,170.6,170.53,76.78]
[1748165827454,21.99751754,170.62,170.54,84.2]
[1748165827659,21.99751754,170.62,170.54,193.1]
[1748165828670,26.0,170.65,170.54,193.1]
[1748165828848,21.99751754,170.65,170.54,193.1]
[1748165829055,47.99751754,170.66,170.55,0.58599192]
[1748165829258,26.0,170.66,170.55,0.58599192]
[1748165829456,7.7449,170.7,170.59,26.0]
[1748165829782,18.14496863,170.79,170.59,26.0]
[1748165829783,21.99751754,170.71,170.62,6.6624]
[1748165830072,21.99751754,170.72,170.62,90.14812047]
[1748165830260,21.99751754,170.71,170.62,90.14812047]
[1748165830577,21.99751754,170.72,170.62,90.14812047]
[1748165830770,1.6307,170.75,170.65,26.0]
[1748165830972,21.99751754,170.73,170.66,76.78]
[1748165831284,21.99751754,170.77,170.69,26.0]
[1748165831460,21.99751754,170.77,170.7,84.2]
[1748165831793,35.14363534,170.74,170.71,35.08]
[1748165832084,35.14363534,170.74,170.72,41.7]
[1748165832679,35.14363534,170.73,170.72,41.7]
[1748165832971,1.6307,170.79,170.72,76.78]
[1748165833380,35.14363534,170.76,170.72,76.78]
[1748165834271,1.6307,170.79,170.72,76.78]
[1748165834474,35.14363534,170.76,170.72,76.78]
[1748165834799,35.14363534,170.78,170.72,76.78]
[1748165835794,44.79181043,170.83,170.72,76.78]
[1748165835965,35.14363534,170.79,170.72,76.78]
[1748165836379,44.79181043,170.83,170.72,76.78]
[1748165836589,35.14363534,170.79,170.72,76.78]
[1748165836995,26.0,170.8,170.72,41.7]
[1748165837289,18.79181043,170.79,170.73,35.08]
[1748165837497,8.4605224,170.84,170.73,35.08]
[1748165837665,18.64964886,170.8,170.73,35.08]
[1748165838078,0.14216157,170.79,170.73,35.08]
[1748165838602,26.0,170.79,170.73,35.08]
[1748165838786,26.0,170.79,170.72,41.7]
[1748165838787,35.14363534,170.74,170.72,41.7]
[1748165838974,35.14363534,170.73,170.72,41.7]
[1748165839386,35.14363534,170.73,170.72,76.78]
[1748165839779,24.91731043,170.78,170.72,76.78]
[1748165839987,1.6307,170.8,170.72,76.78]
[1748165840182,35.14363534,170.77,170.72,76.78]
[1748165840378,35.14363534,170.78,170.72,76.78]
[1748165840574,1.6307,170.8,170.72,76.78]
[1748165840778,35.14363534,170.79,170.72,76.78]
[1748165841102,35.14363534,170.8,170.72,102.78]
[1748165841272,35.14363534,170.81,170.72,102.78]
[1748165842179,35.14363534,170.8,170.72,102.78]
[1748165842391,35.14363534,170.74,170.73,77.0]
[1748165842703,26.0,170.8,170.73,41.92]
[1748165842882,35.14363534,170.75,170.74,35.08]
[1748165843083,35.14363534,170.76,170.74,35.08]
[1748165843281,35.14363534,170.78,170.74,35.08]
[1748165845009,35.14363534,170.8,170.74,35.08]
[1748165845221,35.14363534,170.79,170.74,35.08]
[1748165845505,26.0,170.83,170.74,35.08]
[1748165845807,35.14363534,170.79,170.74,35.08]
[1748165846173,35.14363534,170.8,170.74,35.08]
[1748165846778,26.0,170.83,170.74,35.08]
[1748165846978,26.0,170.83,170.74,117.98]
[1748165847182,35.14363534,170.81,170.74,117.98]
[1748165847599,1.6307,170.84,170.75,84.16]
[1748165847896,35.14363534,170.83,170.75,84.16]
[1748165848199,35.14363534,170.82,170.75,303.26]
[1748165848582,1.6602,170.88,170.76,18.64964886]
[1748165848889,35.14363534,170.84,170.76,219.1]
[1748165849284,35.14363534,170.8,170.76,219.1]
[1748165849490,35.14363534,170.78,170.75,167.06]
[1748165849689,35.14363534,170.79,170.75,84.16]
[1748165849894,35.14363534,170.79,170.73,41.92]
[1748165850089,35.14363534,170.79,170.74,35.06]
[1748165850611,44.79181043,170.85,170.74,35.06]
[1748165850786,0.14216157,170.83,170.74,35.06]
[1748165850981,35.14363534,170.79,170.74,35.06]
[1748165851491,35.14363534,170.78,170.74,35.06]
[1748165851713,35.14363534,170.77,170.74,35.06]
[1748165852200,35.14363534,170.78,170.74,35.06]
[1748165852706,0.14216157,170.83,170.74,35.06]
[1748165852707,35.14363534,170.82,170.74,35.06]
[1748165852906,26.0,170.85,170.74,35.06]
[1748165853093,18.79181043,170.87,170.74,254.16]
[1748165853294,35.14363534,170.83,170.74,254.16]
[1748165855104,35.14363534,170.83,170.77,26.0]
[1748165855706,35.14363534,170.82,170.77,26.0]
[1748165855904,35.14363534,170.78,170.74,219.1]
[1748165856116,35.14363534,170.76,170.75,35.06]
[1748165856300,35.14363534,170.77,170.75,35.06]
[1748165856686,1.66,170.81,170.75,35.06]
[1748165857105,35.14363534,170.78,170.75,35.06]
[1748165857407,35.14363534,170.76,170.69,82.9]
[1748165857608,1.66,170.86,170.73,18.64964886]
[1748165857817,1.80216157,170.9,170.73,101.54964886]
[1748165858001,35.14363534,170.87,170.73,101.54964886]
[1748165858197,35.14363534,170.87,170.73,106.24008657]
[1748165858390,35.14363534,170.83,170.74,0.14216157]
[1748165858591,35.14363534,170.82,170.75,35.06]
[1748165858800,35.14363534,170.83,170.76,41.9]
[1748165858997,20.45181043,170.9,170.75,35.06]
[1748165859317,35.14363534,170.85,170.75,35.06]
[1748165860912,35.14363534,170.85,170.78,26.0]
[1748165861110,35.14363534,170.86,170.78,26.0]
[1748165861302,35.14363534,170.88,170.79,26.0]
[1748165861619,35.14363534,170.89,170.8,26.0]
[1748165861817,35.14363534,170.89,170.81,35.06]
[1748165862023,35.14363534,170.88,170.81,35.06]
[1748165862901,35.14363534,170.87,170.81,35.06]
[1748165863215,35.14363534,170.88,170.81,35.06]
[1748165863816,1.66,170.9,170.81,35.06]
[1748165864020,35.14363534,170.91,170.81,41.1025]
[1748165864207,44.64964886,170.93,170.81,260.2025]
[1748165864513,36.75073534,170.94,170.82,18.64964886]
[1748165864695,35.14363534,170.94,170.82,18.64964886]
[1748165864892,35.14363534,170.95,170.82,18.64964886]
[1748165865611,36.74043534,170.98,170.83,0.14216157]
[1748165865814,35.14363534,171.0,170.88,18.79181043]
[1748165866017,1.5968,171.02,170.88,18.79181043]
[1748165866018,35.14363534,171.01,170.9,0.14216157]
[1748165866513,35.14363534,171.01,170.9,18.79181043]
[1748165866887,6.5389,171.05,170.9,18.79181043]
[1748165867092,35.14363534,171.04,170.9,18.79181043]
[1748165867514,1.5968,171.07,170.95,26.0]
[1748165867717,35.14363534,171.05,170.99,26.0]
[1748165868023,35.14363534,171.06,171.0,41.88]
[1748165868200,35.14363534,171.05,171.0,41.88]
[1748165868398,35.14363534,171.04,171.0,41.88]
[1748165868600,35.14363534,171.01,171.0,41.88]
[1748165868926,35.14363534,171.01,170.96,35.06]